Cogmind - Beta 12 *** ADVENTURER MODE // 2023.03.14 @ 07:02:18 Player: plaidman Result: Destroyed by as-58739 with Assembled Blade Performance ------------- Evolutions (0) 0 Regions Visited (2) 400 Robots Destroyed (9) 45 Value Destroyed (281) 281 Prototype IDs (3) 60 Alien Tech Used (0) 0 Bonus (0) 0 TOTAL SCORE: 786 Bonus ------- None Cogmind --------- Core Integrity 0/250 Matter 276/300 Energy 100/100 System Corruption 0% Temperature Cool (0) Movement Treading (240) Ox1 Location -10/Mines Parts ------- > --- POWER (1) -------- (None) > --- PROPULSION (2) --- Light Treads > --- UTILITY (2) ------ High-capacity Storage Unit > --- WEAPON (2) ------- (None) > --- INVENTORY (20) --- Ion Engine Ion Engine Light Treads Light Treads Light Treads Aluminum Leg Aluminum Leg Improved Heat Sink High-capacity Matter Pod (67) EM Pulse Gun Small Laser Particle Gun Beam Cannon Mining Claw Peak State ------------ > --- POWER ------------ Light Nuclear Core > --- PROPULSION ------- Light Treads Light Treads > --- UTILITY ---------- Improved Heat Sink Large Storage Unit > --- WEAPON ----------- Medium Laser Assault Rifle > --- INVENTORY -------- Ion Engine Ion Engine Light Treads Light Treads Light Treads Aluminum Leg Aluminum Leg Compact Wheel High-capacity Matter Pod Structural Scanner EM Pulse Gun Small Laser Particle Gun Beam Cannon Mining Claw [Rating: 12] Favorites ----------- Power Light Nuclear Core Engine Ion Engine Power Core Light Nuclear Core Propulsion Light Treads Treads Light Treads Leg Aluminum Leg Utility High-capacity Storage Unit Device Improved Heat Sink Storage High-capacity Storage Unit Weapon Medium Laser Energy Gun Medium Laser Ballistic Gun Assault Rifle Slashing Weapon Mining Claw Special Melee Weapon Datajack Build | -11 -10 -10 ------- Run | Jun Mat Min Slots Evolved . | . . . Power . | . . . Propulsion . | . . . Utility . | . . . Weapon . | . . . Parts Attached 36 | 6 20 10 Power 4 | 1 3 . Engine 1 | 1 . . Core 3 | . 3 . Reactor . | . . . Propulsion 11 | 2 9 . Treads 9 | . 9 . Leg 2 | 2 . . Wheel . | . . . Hover . | . . . Flight . | . . . Utility 10 | 1 5 4 Device 4 | . 1 3 Storage 6 | 1 4 1 Processor . | . . . Hackware . | . . . Protection . | . . . Artifact . | . . . Weapon 11 | 2 3 6 Energy Gun 4 | 1 . 3 Energy Cannon . | . . . Ballistic Gun 4 | 1 1 2 Ballistic Cannon . | . . . Launcher . | . . . Special Weapon . | . . . Impact Weapon . | . . . Slashing Weapon 2 | . 2 . Piercing Weapon . | . . . Special Melee Weapon 1 | . . 1 Unidentified Prototypes . | . . . Parts Lost 5 | . . 5 Power 1 | . . 1 Propulsion 1 | . . 1 Utility 1 | . . 1 Weapon 2 | . . 2 Highest Loss Streak 5 | . . 5 To Critical Strikes . | . . . Average Slot Usage (%) 96 | . 95 98 Core 13 | . 12 13 Treads 25 | . 24 27 Leg 1 | . 1 . Device 7 | . 3 13 Storage 19 | . 21 14 Energy Gun 14 | . 14 14 Ballistic Gun 11 | . 12 8 Slashing Weapon 2 | . 1 5 Naked Turns . | . . . Heaviest Build 50 | 14 50 50 Greatest Support 40 | 20 40 40 Greatest Overweight (x) 10 | . 10 2 Average Overweight (x) . | . . 1 Largest Inventory Capacity 20 | 8 20 20 Average Capacity 15 | 6 14 20 Most Carried 17 | 7 15 17 Average Carried 12 | 5 11 15 Final Capacity 20 | 8 20 20 Final Carried 15 | 6 15 14 Class Distribution -------------------- 100% | Mutant Dominant Class ---------------- Mutant | -10/Materials Mutant | -10/Mines Resources | -11 -10 -10 ----------- Run | Jun Mat Min Matter Collected 668 | 250 340 78 Remotely . | . . . Salvage Created 385 | 78 307 . Parts 13 | . 13 . Haulers Intercepted . | . . . Recyclers Shooed . | . . . Parts Field Recycled . | . . . Retrieved Matter . | . . . Parts Self-Destructed . | . . . Prevented . | . . . Kills | -11 -10 -10 ------- Run | Jun Mat Min Combat Hostiles Destroyed 6 | . 6 . Guns 5 | . 5 . Classes Destroyed 3 | 1 2 . Recycler 1 | 1 . . Watcher 2 | . 2 . Grunt 6 | . 6 . Best Kill Streak 2 | 1 2 . Combat Bots Only 2 | . 2 . Max Kills in Single Turn 1 | 1 1 . Gunslinging . | . . . Exploded . | . . . Melee . | . . . Uniques/NPCs Destroyed . | . . . Combat | -11 -10 -10 -------- Run | Jun Mat Min Damage Taken 809 | . 350 459 Core 250 | . 126 124 Absorbed by Shields . | . . . Core Remaining (%) 100 | 100 . . Volleys Fired 35 | 4 31 . Largest 2 | 1 2 . Hottest 70 | 50 70 . Shots Fired 66 | 4 62 . Gun 66 | 4 62 . Cannon . | . . . Launcher . | . . . Special . | . . . Kinetic 31 | . 31 . Thermal 35 | 4 31 . Explosive . | . . . Electromagnetic . | . . . Robot Hit Streak 38 | 4 38 . Robot Miss Streak 2 | . 2 . Penetration Max . | . . . Secondary Targets . | . . . Shots Hit Robots 55 | 4 51 . Core Hits 18 | 2 16 . Critical Kills . | . . . Critical Parts Destroyed . | . . . Critical Strikes 4 | . 4 . Burn 4 | . 4 . Melee Attacks 7 | . 7 . Impact . | . . . Slashing 7 | . 7 . Piercing . | . . . Sneak Attacks . | . . . Combat Hostiles . | . . . Follow-up Attacks . | . . . Damage Inflicted 673 | 48 625 . Guns 673 | 48 625 . Cannons . | . . . Explosions . | . . . Melee . | . . . Ramming . | . . . Kinetic 273 | . 273 . Thermal 400 | 48 352 . Explosive . | . . . Electromagnetic . | . . . Impact . | . . . Slashing . | . . . Piercing . | . . . Highest Corruption . | . . . Average Corruption . | . . . Corruption Purged . | . . . Corruption Blocked . | . . . Overload Shots . | . . . Overflow Damage . | . . . Projectiles . | . . . Explosions . | . . . Melee . | . . . Knockbacks . | . . . Impact . | . . . Kinetic . | . . . Secondary . | . . . Self-Inflicted Damage . | . . . Shots . | . . . Rammed 1 | . . 1 Targets Rammed 1 | . . 1 Kicked . | . . . Crushed . | . . . Highest Temperature 222 | 40 222 2 Average Temperature 86 | 20 92 2 Received Heat Transfer 423 | . 303 120 Siege Activations . | . . . Robots Corrupted . | . . . Combat Hostiles . | . . . Parts Fried . | . . . Impact Corruptions . | . . . Robots Melted 1 | . 1 . Combat Hostiles 1 | . 1 . Parts Melted 2 | . 2 . Heat Transferred 1480 | 148 1332 . Parts Sabotaged . | . . . Parts Stolen . | . . . Parts Stripped . | . . . Power Chain Reactions . | . . . Missiles Intercepted . | . . . Alert | -11 -10 -10 ------- Run | Jun Mat Min Peak Influence 106 | 5 106 . Initial 2 | . 2 . Average 29 | 1 47 . Maximum Alert Level . | . . . Low Security (%) 100 | 100 100 100 Level 1 . | . . . Level 2 . | . . . Level 3 . | . . . Level 4 . | . . . Level 5 . | . . . High Security . | . . . Max Security . | . . . Squads Dispatched . | . . . Investigation . | . . . Extermination . | . . . Reinforcement . | . . . Assault . | . . . Garrison . | . . . Intercept . | . . . Searches Triggered . | . . . Construction Impeded . | . . . Haulers Reinforced . | . . . Active Scanning Responses . | . . . Cargo Convoy Interrupts . | . . . Stealth | -11 -10 -10 --------- Run | Jun Mat Min Distress Signals . | . . . Communications Jammed . | . . . Distress Signals . | . . . Times Spotted 33 | . 12 21 Peak Tracking Total 16 | . 2 16 Tactical Retreats 2 | . . 2 Traps | -11 -10 -10 ------- Run | Jun Mat Min Traps Triggered 3 | . 3 . Indirectly . | . . . Trap Hack Attempts . | . . . Triggered . | . . . Disarmed . | . . . Reprogrammed . | . . . Reused . | . . . Traps Extracted . | . . . Installed . | . . . Triggered . | . . . Machines | -11 -10 -10 ---------- Run | Jun Mat Min Machines Disabled . | . . . Max in Single Turn . | . . . Machines Repaired . | . . . Machines Sabotaged . | . . . Overloaded Fab Kills . | . . . Hacking | -11 -10 -10 --------- Run | Jun Mat Min Machines Accessed 6 | . 6 . Terminals 6 | . 6 . Fabricators . | . . . Repair Stations . | . . . Recycling Units . | . . . Scanalyzers . | . . . Garrison Access . | . . . Total Hacks 18 | . 18 . Successful 10 | . 10 . Failed 8 | . 8 . Catastrophic 2 | . 2 . Database Lockouts . | . . . Manual 5 | . 5 . Terminals 18 | . 18 . Fabricators . | . . . Repair Stations . | . . . Recycling Units . | . . . Scanalyzers . | . . . Garrison Access . | . . . Terminal Hacks 10 | . 10 . Record 6 | . 6 . Robot Analysis 1 | . 1 . Prototype ID Bank 2 | . 2 . Locate Traps 1 | . 1 . Fabricator Hacks . | . . . Repair Station Hacks . | . . . Recycling Unit Hacks . | . . . Scanalyzer . | . . . Garrison Access Hacks . | . . . Unauthorized Hacks . | . . . Terminals . | . . . Fabricators . | . . . Repair Stations . | . . . Recycling Units . | . . . Scanalyzers . | . . . Garrison Access . | . . . Data Cores Recovered . | . . . Used . | . . . Hacking Detections 6 | . 6 . Full Trace Events . | . . . Feedback Events . | . . . Feedback Blocked . | . . . Robot Schematics Acquired . | . . . Robots Built . | . . . Authchips . | . . . Time . | . . . Total Robot Build Rating . | . . . Part Schematics Acquired . | . . . Parts Built . | . . . Authchips . | . . . Time . | . . . Total Part Build Rating . | . . . Parts Repaired . | . . . Time . | . . . Parts Recycled . | . . . Recycled Matter . | . . . Retrieved Matter . | . . . Retrieved Components . | . . . Parts Scanalyzed . | . . . Part Schematics Acquired . | . . . Parts Damaged . | . . . Bothacking | -11 -10 -10 ------------ Run | Jun Mat Min Used RIF Installer . | . . . Robots Hacked . | . . . Non-combat . | . . . Combat . | . . . Robot Hacks Applied . | . . . Relay Couplers Released . | . . . Fabnet Peak Effective % . | . . . Robots Rewired . | . . . Allies Hacked . | . . . Hacks Repelled . | . . . Allies | -11 -10 -10 -------- Run | Jun Mat Min Total Allies 2 | . . 2 Largest Group 2 | . . 2 Highest-Rated Group 42 | . . 42 Highest-Rated Ally 31 | . . 31 Total Orders . | . . . Ally Attacks 2 | . . 2 Total Damage . | . . . Kills . | . . . Allies Corrupted . | . . . Allies Melted . | . . . Intel | -11 -10 -10 ------- Run | Jun Mat Min Robot Analysis Total 1 | . 1 . Derelict Logs Recovered 1 | . . 1 Drone Launches . | . . . Drone Recoveries . | . . . Exploration | -11 -10 -10 ------------- Run | Jun Mat Min Turns Passed 2116 | 117 1310 689 Spaces Moved 998 | 89 631 278 Core 22 | 18 4 . Treads 869 | . 591 278 Legs 107 | 71 36 . Wheels . | . . . Hover . | . . . Flight . | . . . Fastest Speed 50 | 50 120 240 Average Speed 187 | 105 176 240 Slowest Speed 550 | 120 550 320 Overloaded Moves . | . . . Propulsion Burnouts . | . . . Robots Hopped . | . . . Cave-ins Triggered . | . . . Exploration Rate (%) 46 | 7 75 56 Regions Visited 2 Branch Regions 1 Pre-discovered Areas 1 | . . 1 Known Exits Taken . | . . . Unknown Exits Taken 2 | 1 1 . Scrap Searched 1 | . . 1 Spaces Dug 5 | . 5 . Terrain Destroyed 5 | . 5 . Melee 5 | . 5 . Projectile . | . . . AOE . | . . . Terrain Rammed . | . . . Walls Destroyed . | . . . Machines Disabled . | . . . Actions | -11 -10 -10 --------- Run | Jun Mat Min Total 1159 | 106 756 297 Wait 42 | . 42 . Move 996 | 88 630 278 Hop . | . . . Pick Up 26 | 8 16 2 Fast Attach 11 | 4 5 2 Attach 9 | 2 5 2 Detach 2 | . 1 1 Swap 16 | . 10 6 Drop 14 | . 9 5 Fire 35 | 4 31 . Melee 7 | . 7 . Ram . | . . . Kick . | . . . Crush 1 | . . 1 Escape Stasis . | . . . Rewire . | . . . Trap . | . . . Miscellaneous . | . . . Route ------- -11/Junkyard -10/Materials (discovered 2 exits: [*Mat] / [*Min]) -10/Mines (discovered 1 exit: [*Mat]) History --------- Turn | Location | Event 13 | -11/Junkyard | Discovered new exit (range 16) 118 | -11/Junkyard | Entered Materials 313 | -10/Materials | Build established: Mutant 377 | -10/Materials | Discovered new exit (range 16) 822 | -10/Materials | Discovered new exit (range 9) 983 | -10/Materials | Core integrity fell below 50% 1428 | -10/Materials | Entered Mines 1440 | -10/Mines | Met a Derelict bent on vengeance 1940 | -10/Mines | Discovered new exit (range 7) 2070 | -10/Mines | Assembled infested the area 2110 | -10/Mines | Core integrity fell below 20% 2117 | -10/Mines | Destroyed by as-58739 with Assembled Blade Last Messages --------------- Lgt. Nuclear Core destroyed. The unstable cave ceiling collapses. as-56736 destroyed. as-02018 destroyed. as-08628 destroyed. as-71715 destroyed. D-53 Grenadier destroyed. as-36765 destroyed. U-05 Engineer lays Concrete. The unstable cave ceiling collapses. D-53 Grenadier destroyed. U-05 Engineer lays Concrete. Structural Scanner destroyed. The unstable cave ceiling collapses. as-08177 destroyed. T-07 Excavator destroyed. Lgt. Treads destroyed. Med. Laser destroyed. The unstable cave ceiling collapses. Assault Rifle destroyed. Map ----- +----------------------------------------------------+ | #######???????????? | | # ## ########??????? ##?? | | ###### ###???????????? ##?? | | #??#### ###????????##### ##?? | | ####### ####????????##### ##?? | | ###### ###???????#### ##?? | | ###???????##### ##???? | | ####???????### ##???? | | ####????###### ##???? | | #### ###?????###### [##???? | | ##### ######??## #####? | | ##### ######??## ##### | | ##?## ##??## ###### / ### | | ##?###### ##??## ########= ## | | ##?###### ###### ######### ## | | ###?????## ###### #### ## | | ###?????## #### #### ### ## | | ##??????## #### ###### < ## | | ##??????## #### ########## ## | | ##??????## ##??###### ## | | ##??????####### ##????### ## | | #??############ ##????## k## | | ??##########?## ##????## ! ## | | ??### #####?## ##????## ## | | ?? #?## ##????## ## | | ?? ?## ######## @ ## | | #??## ?## ########ar ### | | #??## ? #### ######## | | ???### ### #######? | | ????### ##### a ###?????? | | ?????### # ###?????? | | ?????### =% ##??????? | | ?????## # | ##??????? | | ????? ? ## a # # ###??????? | | ???????? # # ########?? | | ???????? # ! # #########? | | ????????### #] # #### ###? | | ????????## # ##? | | ????????## = # ##? | | ????????### * # ###### ##? | | ????????### % % ####### ##? | | ????????### ###??### ###? | | ???????### ##???########? | | ??????### ##????######?? | | ?????### ##???????????? | | ?????## ###???????????? | | ?????## ####???????????? | | ????? #####????????????? | | ???? #####?????????????? | | ??? ## ! ####????????????????? | +----------------------------------------------------+ Best States ------------- Heat Dissipation 39 Energy Generation 14 Energy Capacity 250 Matter Stores 407 Matter Capacity 450 Sight Range 16 Terrain Scan Density 10 Resistance: KI 20 Resistance: TH 20 Resistance: EX 20 Resistance: EM 20 Resistance: I 20 Resistance: S 20 Resistance: P 20 Evasion (%) 55 Recoil Reduction 2 Offensive Hacking 10 Item Schematics ----------------- None Robot Schematics ------------------ None Fabricated ------------ Nothing Alien Tech Used ----------------- None Achievements -------------- It's Just You Challenges ------------ None Game ------ Seed AlphaIonicPlating Manual? 0 Play Time 00:27:46 Cumulative 4.4 hours Start 2023.03.14 @ 06:26:30 End 2023.03.14 @ 07:02:18 Sessions 1 Manual Loads 0 Difficulty Adventurer Special Mode None Game No. 2 Rogue 0 Adventurer 2 Explorer 0 Win Type - Total 0 Types 0/0/0/0/0/0/0/0/0 Lore% 8 Gallery% 8 Achievement% 10 Wizard Run 0 Options --------- ASCII 0 Keyboard 0 Movement Mouse Keybinds 0 Fullscreen 1 Font 20/SmallcapsGlow Map View 66x50 Tactical HUD 0 Map Filters NONE Filters NONE Steam 1 RUN: 982fbfb9-fd2e-45a9-a48d-aaff4a29d36c